fUSD/lending_fUSD_20241227
["ID","MTS","AMOUNT","RATE_DAILY","PERIOD"]
[346765633,1735272641971,-1824.0,0.0001198,2]
[346765635,1735272641981,-500.0,0.0001198,2]
[346765637,1735272641991,-687.4,0.0001198,2]
[346765639,1735272642000,-500.0,0.0001198,2]
[346765641,1735272642010,-500.0,0.0001198,2]
[346765643,1735272642020,-500.0,0.0001198,2]
[346765645,1735272642029,-539.39363996,0.0001198,2]
[346765647,1735272642038,-501.26400369,0.0001198,2]
[346765649,1735272642047,-547.76,0.0001198,2]
[346765651,1735272642056,-617.47,0.0001198,2]
[346765653,1735272642067,-500.0,0.0001198,2]
[346765655,1735272642076,-574.65,0.0001198,2]
[346765657,1735272642085,-500.0,0.0001198,2]
[346765659,1735272642094,-500.0,0.0001198,2]
[346765661,1735272642104,-500.0,0.0001198,2]
[346765663,1735272642114,-1245.85,0.0001198,2]
[346765665,1735272642123,-806.74,0.0001198,2]
[346765667,1735272642132,-3527.65,0.0001198,2]
[346765669,1735272642141,-2227.71,0.0001198,2]
[346765670,1735272642150,-501.15356494,0.0001198,2]
[346765672,1735272642160,-500.0,0.0001198,2]
[346765674,1735272642169,-500.0,0.0001198,2]
[346765676,1735272642178,-500.0,0.0001198,2]
[346765678,1735272642187,-500.0,0.0001198,2]
[346765680,1735272642196,-1451.34,0.0001198,2]
[346765682,1735272642205,-500.0,0.0001198,2]
[346765684,1735272642214,-946.59,0.0001198,2]
[346765686,1735272642224,-500.0,0.0001198,2]
[346765688,1735272642234,-500.56900803,0.0001198,2]
[346765690,1735272642244,-658.04,0.0001198,2]
[346765692,1735272642254,-500.0,0.0001198,2]
[346765694,1735272642263,-1594.5,0.0001198,2]
[346765696,1735272642272,-500.0,0.0001198,2]
[346765698,1735272642281,-500.0,0.0001198,2]
[346765700,1735272642290,-666.55,0.0001198,2]
[346765703,1735272642300,-500.0,0.0001198,2]
[346765705,1735272642310,-500.0,0.0001198,2]
[346765706,1735272642319,-501.16041382,0.0001198,2]
[346765708,1735272642328,-504.45773077,0.0001198,2]
[346765710,1735272642337,-500.0,0.0001198,2]
[346765712,1735272642346,-504.45,0.0001198,2]
[346765713,1735272642355,-501.62565695,0.0001198,2]
[346765714,1735272642364,-2811.72,0.0001198,2]
[346765715,1735272642373,-541.25,0.0001198,2]
[346765716,1735272642382,-658.24,0.0001198,2]
[346765717,1735272642391,-500.0,0.0001198,2]
[346765718,1735272642400,-500.0,0.0001198,2]
[346765719,1735272642409,-500.0,0.0001198,2]
[346765721,1735272642418,-500.0,0.0001198,2]
[346765723,1735272642427,-500.0,0.0001198,2]
[346765725,1735272642437,-502.18224198,0.0001198,2]
[346765727,1735272642446,-753.31,0.0001198,2]
[346765729,1735272642455,-1028.17,0.0001198,2]
[346765731,1735272642465,-503.04500892,0.0001198,2]
[346765733,1735272642474,-784.49,0.0001198,2]
[346765735,1735272642483,-500.0,0.0001198,2]
[346765737,1735272642492,-1650.77,0.0001198,2]
[346765739,1735272642501,-500.0,0.0001198,2]
[346765741,1735272642510,-500.0,0.0001198,2]
[346765743,1735272642520,-898.79,0.0001198,2]
[346765745,1735272642530,-500.0,0.0001198,2]
[346765747,1735272642539,-612.4,0.0001198,2]
[346765749,1735272642548,-502.09919777,0.0001198,2]
[346765751,1735272642557,-500.0,0.0001198,2]
[346765753,1735272642568,-502.54227693,0.0001198,2]
[346765755,1735272642577,-500.0,0.0001198,2]
[346765757,1735272642586,-500.0,0.0001198,2]
[346765759,1735272642595,-514.74,0.0001198,2]
[346765761,1735272642606,-3747.22,0.0001198,2]
[346765763,1735272642616,-2243.28,0.0001198,2]
[346765765,1735272642625,-902.63,0.0001198,2]
[346765767,1735272642634,-1382.747078,0.0001198,2]
[346765769,1735272642643,-156.473705,0.0001198,2]
[346765771,1735272642652,-155.354218,0.0001198,2]
[346765773,1735272642661,-984.7,0.0001198,2]
[346765775,1735272642671,-500.0,0.0001198,2]
[346765777,1735272642680,-1444.5,0.0001198,2]
[346765779,1735272642690,-501.43453842,0.0001198,2]
[346765781,1735272642699,-1143.88,0.0001198,2]
[346765783,1735272642707,-500.0,0.0001198,2]
[346765785,1735272642717,-1119.870697,0.0001198,2]
[346765787,1735272642729,-518.94,0.0001198,2]
[346765789,1735272642740,-1283.94,0.0001198,2]
[346765791,1735272642749,-501.68516867,0.0001198,2]
[346765793,1735272642758,-500.0,0.0001198,2]
[346765795,1735272642767,-500.0,0.0001198,2]
[346765797,1735272642779,-1416.51,0.0001198,2]
[346765799,1735272642788,-544.54,0.0001198,2]
[346765801,1735272642798,-887.35,0.0001198,2]
[346765803,1735272642807,-498.55941621,0.0001198,2]
[346765805,1735272642817,-502.18728918,0.0001198,2]
[346765807,1735272642827,-500.0,0.0001198,2]
[346765809,1735272642836,-3097.59,0.0001198,2]
[346765811,1735272642847,-500.0,0.0001198,2]
[346765830,1735272642979,-510.60874236,0.0001198,2]
[346765833,1735272643002,-502.0768485,0.0001198,2]
[346765835,1735272643011,-493.32635556,0.0001198,2]
[346765837,1735272643020,-650.06,0.0001198,2]
[346765839,1735272643029,-730.95,0.0001198,2]
[346765841,1735272643039,-500.0,0.0001198,2]
[346765843,1735272643049,-273.13233626,0.0001198,2]
[346765845,1735272643058,-500.71690898,0.0001198,2]
[346765847,1735272643067,-19292.13,0.0001198,2]
[346765849,1735272643077,-500.0,0.0001198,2]
[346765851,1735272643086,-500.0,0.0001198,2]
[346765853,1735272643095,-500.0,0.0001198,2]
[346765855,1735272643104,-500.0,0.0001198,2]
[346765857,1735272643113,-1234.95,0.0001198,2]
[346765859,1735272643122,-500.0,0.0001198,2]
[346765861,1735272643132,-500.0,0.0001198,2]
[346765863,1735272643141,-500.0,0.0001198,2]
[346765865,1735272643150,-569.64,0.0001198,2]
[346765867,1735272643159,-501.22232087,0.0001198,2]
[346765869,1735272643168,-880.24,0.0001198,2]
[346765871,1735272643178,-501.5359959,0.0001198,2]
[346765872,1735272643186,-500.65451543,0.0001198,2]
[346765875,1735272643196,-519.45008788,0.0001198,2]
[346765876,1735272643205,-534.48,0.0001198,2]
[346765879,1735272643214,-500.0,0.0001198,2]
[346765881,1735272643223,-502.6763213,0.0001198,2]
[346765882,1735272643233,-500.0,0.0001198,2]
[346765885,1735272643243,-1463.26,0.0001198,2]
[346765886,1735272643252,-994.59,0.0001198,2]
[346765889,1735272643262,-500.24,0.0001198,2]
[346765891,1735272643272,-1612.89,0.0001198,2]
[346765892,1735272643281,-1025.57,0.0001198,2]
[346765894,1735272643291,-500.0,0.0001198,2]
[346765896,1735272643300,-500.0,0.0001198,2]
[346765898,1735272643310,-1551.25,0.0001198,2]
[346765900,1735272643319,-500.0,0.0001198,2]
[346765902,1735272643328,-501.87639061,0.0001198,2]
[346765904,1735272643337,-500.0,0.0001198,2]
[346765906,1735272643347,-500.0,0.0001198,2]
[346765908,1735272643356,-2244.38,0.0001198,2]
[346765910,1735272643365,-500.0,0.0001198,2]
[346765912,1735272643374,-1632.39,0.0001198,2]
[346765914,1735272643383,-472.8724627,0.0001198,2]
[346765916,1735272643393,-501.23052112,0.0001198,2]
[346765918,1735272643402,-1635.31,0.0001198,2]
[346765920,1735272643411,-500.0,0.0001198,2]
[346765922,1735272643420,-500.0,0.0001198,2]
[346765924,1735272643429,-981.05,0.0001198,2]
[346765926,1735272643438,-509.42381043,0.0001198,2]
[346765928,1735272643448,-977.16,0.0001198,2]
[346765930,1735272643457,-500.0,0.0001198,2]
[346765932,1735272643466,-500.0,0.0001198,2]
[346765934,1735272643476,-500.0,0.0001198,2]
[346765936,1735272643485,-479.79983869,0.0001198,2]
[346765938,1735272643495,-500.0,0.0001198,2]
[346765940,1735272643504,-555.06,0.0001198,2]
[346765942,1735272643514,-500.0,0.0001198,2]
[346765944,1735272643523,-500.0,0.0001198,2]
[346765946,1735272643533,-500.0,0.0001198,2]
[346765948,1735272643542,-502.99245636,0.0001198,2]
[346765950,1735272643551,-500.0,0.0001198,2]
[346765952,1735272643560,-500.0,0.0001198,2]
[346765954,1735272643570,-706.35,0.0001198,2]
[346765956,1735272643579,-340.26302335,0.0001198,2]
[346765958,1735272643588,-546.78,0.0001198,2]
[346765960,1735272643597,-3251.08,0.0001198,2]
[346765962,1735272643606,-500.0,0.0001198,2]
[346765963,1735272643616,-615.66,0.0001198,2]
[346765964,1735272643624,-500.0,0.0001198,2]
[346765965,1735272643633,-1060.85,0.0001198,2]
[346765966,1735272643642,-1528.7,0.0001198,2]
[346765967,1735272643651,-501.64763382,0.0001198,2]
[346765968,1735272643659,-500.0,0.0001198,2]
[346765969,1735272643668,-500.0,0.0001198,2]
[346765970,1735272643678,-1806.97,0.0001198,2]
[346765972,1735272643689,-500.0,0.0001198,2]
[346765974,1735272643698,-500.0,0.0001198,2]
[346765976,1735272643708,-500.0,0.0001198,2]
[346765978,1735272643717,-988.23,0.0001198,2]
[346765980,1735272643727,-771.98,0.0001198,2]
[346765982,1735272643736,-501.71894495,0.0001198,2]
[346765984,1735272643746,-500.0,0.0001198,2]
[346765986,1735272643755,-1371.11,0.0001198,2]
[346765988,1735272643765,-501.09668521,0.0001198,2]
[346765990,1735272643778,-500.0,0.0001198,2]
[346765992,1735272643787,-500.0,0.0001198,2]
[346765994,1735272643797,-500.0,0.0001198,2]
[346765996,1735272643806,-500.0,0.0001198,2]
[346765998,1735272643816,-546.67,0.0001198,2]
[346766000,1735272643825,-500.0,0.0001198,2]
[346766002,1735272643835,-500.0,0.0001198,2]
[346766004,1735272643844,-665.31,0.0001198,2]
[346766005,1735272643854,-967.36,0.0001198,2]
[346766006,1735272643863,-500.0,0.0001198,2]
[346766007,1735272643872,-2823.14,0.0001198,2]
[346766008,1735272643881,-500.0,0.0001198,2]
[346766009,1735272643891,-1958.17,0.0001198,2]
[346766010,1735272643900,-500.0,0.0001198,2]
[346766011,1735272643910,-500.0,0.0001198,2]
[346766012,1735272643919,-500.0,0.0001198,2]
[346766013,1735272643929,-910.38,0.0001198,2]
[346766014,1735272643938,-903.61,0.0001198,2]
[346766015,1735272643947,-500.0,0.0001198,2]
[346766016,1735272643957,-500.0,0.0001198,2]
[346766017,1735272643967,-1422.64,0.0001198,2]
[346766018,1735272643978,-500.0,0.0001198,2]
[346766019,1735272643988,-502.52209922,0.0001198,2]
[346766020,1735272643997,-500.0,0.0001198,2]
[346766021,1735272644007,-997.38,0.0001198,2]
[346766022,1735272644016,-500.0,0.0001198,2]
[346766023,1735272644026,-500.0,0.0001198,2]
[346766024,1735272644035,-1408.01,0.0001198,2]
[346766025,1735272644044,-500.0,0.0001198,2]
[346766026,1735272644054,-500.0,0.0001198,2]
[346766027,1735272644063,-508.53690709,0.0001198,2]
[346766028,1735272644072,-643.07,0.0001198,2]
[346766029,1735272644082,-500.0,0.0001198,2]
[346766030,1735272644092,-500.0,0.0001198,2]
[346766031,1735272644101,-500.0,0.0001198,2]
[346766032,1735272644111,-500.0,0.0001198,2]
[346766033,1735272644120,-916.75,0.0001198,2]
[346766034,1735272644130,-500.0,0.0001198,2]
[346766035,1735272644139,-500.0,0.0001198,2]
[346766036,1735272644149,-500.0,0.0001198,2]
[346766037,1735272644159,-205.21695218,0.0001198,2]
[346766038,1735272644169,-500.0,0.0001198,2]
[346766039,1735272644179,-2004.58375761,0.0001198,2]
[346766040,1735272644578,-884.72667922,0.00011685,2]
[346766041,1735272644587,-500.0,0.00011979,2]
[346766042,1735272644596,-3707.09746001,0.0001198,2]
[346766043,1735272644607,-2610.97439795,0.0001198,2]
[346766044,1735272644618,-466.5999998,0.0001198,2]
[346766045,1735272644640,-808.37339128,0.0001198,2]
[346766046,1735272644651,-204.46099335,0.0001198,2]
[346766047,1735272644660,-500.0,0.0001198,2]
[346766048,1735272644668,-500.0,0.0001198,2]
[346766049,1735272644678,-567.54,0.0001198,2]
[346766050,1735272644687,-500.0,0.0001198,2]
[346766051,1735272644695,-1498.89,0.0001198,2]
[346766052,1735272644704,-500.83828987,0.0001198,2]
[346766053,1735272644713,-12.35291417,0.0001198,2]
[346766054,1735272644750,-500.0,0.00011979,2]
[346766055,1735272644759,-487.64708583,0.0001198,2]
[346766056,1735272644915,-500.0,0.0001198,2]
[346766057,1735272644925,-1551.51,0.0001198,2]
[346766058,1735272644935,-971.73,0.0001198,2]
[346766059,1735272644944,-442.81856319,0.0001198,2]
[346766060,1735272644956,-437.5677695,0.0001198,2]
[346766061,1735272644967,-5676.46619945,0.0001198,2]
[346766062,1735272644982,-442.61210009,0.0001198,2]
[346766063,1735272644994,-2507.59440938,0.0001198,2]
[346766064,1735272646267,-620.86,0.00011979,2]
[346766065,1735272646277,-550.33,0.00011979,2]
[346766066,1735272646287,-5252.81095839,0.0001198,2]
[346766067,1735272646297,-500.0,0.0001198,2]
[346766068,1735272646306,-500.0,0.0001198,2]
[346766069,1735272646316,-500.0,0.0001198,2]
[346766070,1735272646325,-923.32873905,0.0001198,2]
[346766071,1735272646337,-279.02126095,0.0001198,2]
[346766072,1735272646346,-500.0,0.0001198,2]
[346766073,1735272646355,-510.7179749,0.0001198,2]
[346766074,1735272646365,-1609.4,0.0001198,2]
[346766075,1735272646374,-501.52498246,0.0001198,2]
[346766076,1735272646384,-1878.47,0.0001198,2]
[346766077,1735272646394,-84.69218851,0.0001198,2]
[346766078,1735272646419,-978.79830355,0.0001198,2]
[346766079,1735272646466,-814.97950794,0.0001198,2]
[346766080,1735272646475,-501.08897979,0.0001198,2]
[346766081,1735272646485,-962.19,0.0001198,2]
[346766082,1735272646495,-500.84072724,0.0001198,2]
[346766083,1735272646504,-500.0,0.0001198,2]
[346766084,1735272646514,-527.91862079,0.0001198,2]
[346766085,1735272646525,-500.0,0.0001198,2]
[346766087,1735272646534,-510.53257599,0.0001198,2]
[346766090,1735272646544,-500.83716612,0.0001198,2]
[346766091,1735272646554,-1488.45091753,0.0001198,2]
[346766094,1735272646566,-302.35908247,0.0001198,2]
[346766096,1735272646575,-500.0,0.0001198,2]
[346766113,1735272646584,-500.0,0.0001198,2]
[346766116,1735272646742,-808.11,0.0001198,2]
[346766118,1735272646752,-500.0,0.0001198,2]
[346766120,1735272646761,-500.0,0.0001198,2]
[346766122,1735272646774,-500.0,0.0001198,2]
[346766124,1735272646784,-500.0,0.0001198,2]
[346766126,1735272646794,-502.03748791,0.0001198,2]
[346766128,1735272646803,-500.0,0.0001198,2]
[346766130,1735272646814,-1673.85,0.0001198,2]
[346766132,1735272646824,-500.0,0.0001198,2]
[346766134,1735272646834,-500.59366205,0.0001198,2]
[346766136,1735272646843,-1211.52,0.0001198,2]
[346766138,1735272646855,-1373.66,0.0001198,2]
[346766140,1735272646865,-536.06,0.0001198,2]
[346766142,1735272646874,-2410.4942487,0.0001198,2]
[346766144,1735272646886,-9849.16828037,0.0001198,2]
[346766147,1735272646901,-939.00831506,0.0001198,2]
[346766149,1735272646912,-883.5024607,0.0001198,2]
[346766151,1735272646923,-604.799997,0.0001198,2]
[346766153,1735272646935,-294.59669817,0.0001198,2]
[346766155,1735272646944,-500.47857295,0.0001198,2]
[346766157,1735272646954,-501.13201137,0.0001198,2]
[346766159,1735272646963,-500.0,0.0001198,2]
[346766162,1735272646973,-500.0,0.0001198,2]
[346766164,1735272646984,-500.75623206,0.0001198,2]
[346766166,1735272646993,-500.0,0.0001198,2]
[346766168,1735272647003,-500.0,0.0001198,2]
[346766170,1735272647012,-500.0,0.0001198,2]
[346766172,1735272647022,-1033.91648545,0.0001198,2]
[346766177,1735272647063,-353.29351455,0.0001198,2]
[346766179,1735272647072,-82.3478986,0.0001198,2]
[346766245,1735272647762,-500.0,0.00011979,2]
[346766247,1735272647773,-126.8265502,0.00011979,2]
[346766249,1735272647786,-373.1734498,0.00011979,2]
[346766251,1735272647795,-500.0,0.00011979,2]
[346766253,1735272647804,-500.0,0.00011979,2]
[346766255,1735272647815,-417.6521014,0.0001198,2]
[346766257,1735272647824,-2989.36,0.0001198,2]
[346766259,1735272647834,-747.85,0.0001198,2]
[346766261,1735272647844,-500.0,0.0001198,2]
[346766263,1735272647853,-500.0,0.0001198,2]
[346766265,1735272647862,-505.8413886,0.0001198,2]
[346766267,1735272647872,-562.40848072,0.0001198,2]
[346766269,1735272647881,-506.17449648,0.0001198,2]
[346766271,1735272647890,-4877.37,0.0001198,2]
[346766273,1735272647899,-511.45811617,0.0001198,2]
[346766274,1735272647908,-499.15459182,0.0001198,2]
[346766276,1735272647918,-500.0,0.0001198,2]
[346766278,1735272647927,-721.07,0.0001198,2]
[346766280,1735272647936,-2159.85,0.0001198,2]
[346766282,1735272647946,-583.37,0.0001198,2]
[346766284,1735272647955,-501.12188557,0.0001198,2]
[346766286,1735272647964,-503.43673227,0.0001198,2]
[346766289,1735272647973,-250.12279235,0.0001198,2]
[346766291,1735272647984,-500.0,0.0001198,2]
[346766292,1735272647994,-614.79,0.0001198,2]
[346766294,1735272648003,-1256.2,0.0001198,2]
[346766296,1735272648013,-502.4742399,0.0001198,2]
[346766298,1735272648022,-1550.36,0.0001198,2]
[346766300,1735272648032,-500.0,0.0001198,2]
[346766302,1735272648041,-509.21766476,0.0001198,2]
[346766304,1735272648050,-500.0,0.0001198,2]
[346766306,1735272648060,-500.0,0.0001198,2]
[346766308,1735272648069,-500.0,0.0001198,2]
[346766310,1735272648079,-500.0,0.0001198,2]
[346766312,1735272648088,-500.0,0.0001198,2]
[346766314,1735272648097,-1022.16,0.0001198,2]
[346766316,1735272648107,-589.34,0.0001198,2]
[346766318,1735272648117,-217.40330236,0.0001198,2]
[346766320,1735272648126,-500.0,0.0001198,2]
[346766322,1735272648135,-500.0,0.0001198,2]
[346766324,1735272648145,-500.0,0.0001198,2]
[346766326,1735272648153,-182.62376482,0.0001198,2]
[346766328,1735272648164,-3726.03135666,0.00011981,2]
[346766330,1735272648173,-165303.89916497,0.00011981,2]
[346766332,1735272648182,-508.17737732,0.00011981,2]
[346766334,1735272648191,-504.14033797,0.00011981,2]
[346766336,1735272648201,-500.0,0.00011981,2]
[346766338,1735272648210,-180.91905865,0.00011981,2]
[346766341,1735272648230,-319.08094135,0.00011981,2]
[346766343,1735272648239,-13.58244385,0.00011981,2]
[346766345,1735272648311,-486.41755615,0.00011981,2]
[346766346,1735272648321,-500.96304273,0.00011981,2]
[346766348,1735272648330,-426.09362741,0.00011981,2]
[346766350,1735272648340,-319.52543118,0.00011981,2]
[346766352,1735272648349,-500.0,0.00011981,2]
[346766354,1735272648358,-67.99966998,0.00011981,2]
[346766373,1735272648528,-487.72534443,0.00011981,2]
[346766375,1735272648537,-504.55000408,0.00011981,2]
[346766377,1735272648546,-500.0,0.00011981,2]
[346766379,1735272648556,-503.10897667,0.00011981,2]
[346766381,1735272648565,-495.35465344,0.00011981,2]
[346766382,1735272648575,-500.43891601,0.00011981,2]
[346766384,1735272648584,-500.0,0.00011981,2]
[346766387,1735272648594,-500.0,0.00011981,2]
[346766389,1735272648605,-500.69065524,0.00011981,2]
[346766391,1735272648615,-500.73979164,0.00011981,2]
[346766392,1735272648624,-164.95578817,0.00011981,2]
[346766395,1735272648634,-503.47723343,0.00011981,2]
[346766397,1735272648643,-635.8,0.00011981,2]
[346766398,1735272648653,-500.0,0.00011981,2]
[346766401,1735272648663,-500.0,0.00011981,2]
[346766402,1735272648672,-500.0,0.00011981,2]
[346766405,1735272648683,-500.0,0.00011981,2]
[346766407,1735272648692,-500.0,0.00011981,2]
[346766409,1735272648702,-500.0,0.00011981,2]
[346766411,1735272648711,-500.0,0.00011981,2]
[346766413,1735272648722,-500.0,0.00011981,2]
[346766414,1735272648732,-500.0,0.00011981,2]
[346766416,1735272648741,-500.0,0.00011981,2]
[346766418,1735272648751,-508.16264597,0.00011981,2]
[346766420,1735272648760,-775.85,0.00011981,2]
[346766423,1735272648771,-500.0,0.00011981,2]
[346766424,1735272648782,-500.0,0.00011981,2]
[346766427,1735272648791,-500.0,0.00011981,2]
[346766428,1735272648801,-500.0,0.00011981,2]
[346766429,1735272648811,-536.99,0.00011981,2]
[346766431,1735272648821,-917.47,0.00011981,2]
[346766432,1735272648830,-500.0,0.00011981,2]
[346766434,1735272648840,-884.64,0.00011981,2]
[346766436,1735272648851,-500.0,0.00011981,2]
[346766437,1735272648861,-463.3217474,0.00011981,2]
[346766439,1735272648871,-500.0,0.00011981,2]
[346766440,1735272648881,-500.0,0.00011981,2]
[346766442,1735272648890,-500.0,0.00011981,2]
[346766443,1735272648900,-500.0,0.00011981,2]
[346766445,1735272648910,-791.6,0.00011981,2]
[346766446,1735272648919,-500.0,0.00011981,2]
[346766448,1735272648929,-500.0,0.00011981,2]
[346766449,1735272648938,-500.0,0.00011981,2]
[346766451,1735272648948,-500.0,0.00011981,2]
[346766453,1735272648957,-500.0,0.00011981,2]
[346766454,1735272648967,-500.0,0.00011981,2]
[346766456,1735272648977,-526.57,0.00011981,2]
[346766457,1735272648987,-500.0,0.00011981,2]
[346766459,1735272648997,-538.81926786,0.00011981,2]
[346766460,1735272649006,-576.66,0.00011981,2]
[346766462,1735272649015,-613.24,0.00011981,2]
[346766464,1735272649026,-500.0,0.00011981,2]
[346766465,1735272649035,-742.29,0.00011981,2]
[346766467,1735272649044,-500.0,0.00011981,2]
[346766468,1735272649053,-500.0,0.00011981,2]
[346766470,1735272649062,-500.0,0.00011981,2]
[346766472,1735272649072,-500.0,0.00011981,2]
[346766473,1735272649081,-959.95,0.00011981,2]
[346766475,1735272649091,-500.0,0.00011981,2]
[346766476,1735272649100,-959.17,0.00011981,2]
[346766478,1735272649110,-500.0,0.00011981,2]
[346766480,1735272649120,-500.0,0.00011981,2]
[346766482,1735272649131,-500.0,0.00011981,2]
[346766483,1735272649140,-500.0,0.00011981,2]
[346766485,1735272649150,-151.0,0.00011981,2]
[346766487,1735272649159,-569.5,0.00011981,2]
[346766488,1735272649169,-500.0,0.00011981,2]
[346766490,1735272649178,-500.0,0.00011981,2]
[346766492,1735272649188,-736.52,0.00011981,2]
[346766493,1735272649197,-500.0,0.00011981,2]
[346766495,1735272649207,-500.0,0.00011981,2]
[346766497,1735272649216,-500.0,0.00011981,2]
[346766498,1735272649225,-500.0,0.00011981,2]
[346766500,1735272649236,-500.0,0.00011981,2]
[346766502,1735272649246,-500.0,0.00011981,2]
[346766504,1735272649256,-500.0,0.00011981,2]
[346766505,1735272649266,-516.07079801,0.00011981,2]
[346766507,1735272649275,-508.71195261,0.00011981,2]
[346766509,1735272649284,-1155.22,0.00011981,2]
[346766510,1735272649294,-500.0,0.00011981,2]
[346766512,1735272649303,-178.75941147,0.00011981,2]
[346766514,1735272649317,-321.24058853,0.00011981,2]
[346766516,1735272649326,-62.26804417,0.00011981,2]
[346766517,1735272649338,-437.73195583,0.00011981,2]
[346766519,1735272649348,-500.0,0.00011981,2]
[346766521,1735272649357,-500.0,0.00011981,2]
[346766522,1735272649367,-500.0,0.00011981,2]
[346766524,1735272649376,-500.0,0.00011981,2]
[346766526,1735272649385,-731.95,0.00011981,2]
[346766527,1735272649394,-500.0,0.00011981,2]
[346766529,1735272649404,-503.00904419,0.00011981,2]
[346766531,1735272649422,-500.0,0.00011981,2]
[346766533,1735272649438,-500.0,0.00011981,2]
[346766536,1735272649458,-500.0,0.00011981,2]
[346766539,1735272649477,-2733.0963485,0.00011981,2]
[346766544,1735272649614,-704.9042855,0.00011981,2]
[346766545,1735272649637,-700.699366,0.00011981,2]
[346766546,1735272649650,-437.6249305,0.00011981,2]
[346766548,1735272649671,-62.3750695,0.00011981,2]
[346766551,1735272649688,-500.0,0.00011981,2]
[346766554,1735272649704,-500.0,0.00011981,2]
[346766556,1735272649719,-593.63,0.00011981,2]
[346766559,1735272649736,-500.0,0.00011981,2]
[346766562,1735272649749,-500.0,0.00011981,2]
[346766564,1735272649765,-500.0,0.00011981,2]
[346766567,1735272649782,-500.0,0.00011981,2]
[346766569,1735272649798,-500.0,0.00011981,2]
[346766572,1735272649812,-594.02896027,0.00011981,2]
[346766574,1735272649827,-500.0,0.00011981,2]
[346766577,1735272649843,-500.0,0.00011981,2]
[346766580,1735272649860,-500.0,0.00011981,2]
[346766582,1735272649876,-16264.48,0.00011981,2]
[346766585,1735272649891,-511.8228889,0.00011981,2]
[346766588,1735272649906,-500.0,0.00011981,2]
[346766590,1735272649921,-517.79585907,0.00011981,2]
[346766593,1735272649936,-500.0,0.00011981,2]
[346766596,1735272649951,-511.34433311,0.00011981,2]
[346766598,1735272649965,-500.0,0.00011981,2]
[346766601,1735272649982,-595.49,0.00011981,2]
[346766603,1735272649995,-500.0,0.00011981,2]
[346766605,1735272650010,-937.88,0.00011981,2]
[346766608,1735272650025,-500.0,0.00011981,2]
[346766611,1735272650042,-2207.5,0.00011981,2]
[346766614,1735272650058,-2207.5,0.00011981,2]
[346766616,1735272650073,-500.0,0.00011981,2]
[346766619,1735272650088,-990.9,0.00011981,2]
[346766621,1735272650103,-576.83,0.00011981,2]
[346766624,1735272650118,-500.0,0.00011981,2]
[346766627,1735272650133,-500.0,0.00011981,2]
[346766629,1735272650148,-509.18073258,0.00011981,2]
[346766632,1735272650162,-1118.16,0.00011981,2]
[346766634,1735272650177,-500.0,0.00011981,2]
[346766637,1735272650193,-500.0,0.00011981,2]
[346766639,1735272650207,-422.29237449,0.00011981,2]
[346766642,1735272650223,-500.0,0.00011981,2]
[346766644,1735272650237,-365.9620495,0.00011981,2]
[346766657,1735272659964,-4168.93844569,0.0001255,5]
[346766658,1735272996546,-847.02,9.073e-05,2]
[346766661,1735273156320,-1057.0,9.455e-05,2]
[346766669,1735273685094,-498.35080798,9.453e-05,2]
[346766723,1735273832364,-593.93230965,9.453e-05,2]